lending/lending_fUSD_20250424
["ID","MTS","AMOUNT","RATE_DAILY","PERIOD"]
[358856707,1745488537777,-500.0,0.00054794,60]
[358856708,1745488537791,-500.0,0.00054794,60]
[358856709,1745488537806,-500.0,0.00054794,60]
[358856710,1745488537820,-500.0,0.00054794,60]
[358856711,1745488537836,-500.0,0.00054794,60]
[358856712,1745488537851,-500.0,0.00054794,60]
[358856713,1745488537866,-500.0,0.00054794,60]
[358856714,1745488537881,-500.0,0.00054794,60]
[358856715,1745488537895,-500.0,0.00054794,60]
[358856716,1745488537910,-500.0,0.00054794,60]
[358856717,1745488537924,-500.0,0.00054794,60]
[358856718,1745488537937,-500.0,0.00054794,60]
[358856719,1745488537953,-500.0,0.00054794,60]
[358856720,1745488537968,-500.0,0.00054794,60]
[358856721,1745488537983,-222.27417102,0.00054794,60]
[358856722,1745488537998,-155.88779258,0.00054794,60]
[358856723,1745488538012,-150.0,0.00054794,60]
[358856724,1745488538027,-150.0,0.00054794,60]
[358856725,1745488538042,-150.0,0.00054794,60]
[358856726,1745488538057,-218.62084186,0.00054794,60]
[358856727,1745488538072,-500.0,0.00054794,60]
[358856728,1745488538086,-500.0,0.00054794,60]
[358856729,1745488538100,-500.0,0.00054794,60]
[358856730,1745488538114,-500.0,0.00054794,60]
[358856731,1745488538129,-500.0,0.00054794,60]
[358856732,1745488538143,-615.43190873,0.00054794,60]
[358856733,1745488538157,-151.31344373,0.00054794,60]
[358856734,1745488538171,-150.0,0.00054794,60]
[358856735,1745488538185,-150.0,0.00054794,60]
[358856736,1745488538201,-202.48235516,0.00054794,60]
[358856737,1745488538214,-500.0,0.00054794,60]
[358856738,1745488538228,-500.0,0.00054794,60]
[358856739,1745488538242,-223.74969179,0.00054794,60]
[358856740,1745488538256,-970.0,0.00054794,60]
[358856741,1745488538271,-970.0,0.00054794,60]
[358856742,1745488538286,-970.0,0.00054794,60]
[358856743,1745488538299,-970.0,0.00054794,60]
[358856744,1745488538314,-970.0,0.00054794,60]
[358856745,1745488538329,-970.0,0.00054794,60]
[358856746,1745488538344,-970.0,0.00054794,60]
[358856747,1745488538358,-970.0,0.00054794,60]
[358856748,1745488538373,-970.0,0.00054794,60]
[358856749,1745488538387,-970.0,0.00054794,60]
[358856750,1745488538403,-970.0,0.00054794,60]
[358856751,1745488538417,-970.0,0.00054794,60]
[358856752,1745488538442,-970.0,0.00054794,60]
[358856753,1745488538456,-970.0,0.00054794,60]
[358856754,1745488538471,-970.0,0.00054794,60]
[358856755,1745488538485,-970.0,0.00054794,60]
[358856756,1745488538498,-970.0,0.00054794,60]
[358856757,1745488538511,-970.0,0.00054794,60]
[358856758,1745488538525,-970.0,0.00054794,60]
[358856759,1745488538539,-970.0,0.00054794,60]
[358856760,1745488538553,-970.0,0.00054794,60]
[358856761,1745488538567,-970.0,0.00054794,60]
[358856762,1745488538583,-970.0,0.00054794,60]
[358856763,1745488538597,-987.47737139,0.00054794,60]
[358856764,1745488538610,-426.0,0.00054794,60]
[358856765,1745488538624,-426.0,0.00054794,60]
[358856766,1745488538639,-426.0,0.00054794,60]
[358856767,1745488538653,-426.0,0.00054794,60]
[358856768,1745488538666,-426.0,0.00054794,60]
[358856769,1745488538679,-426.0,0.00054794,60]
[358856770,1745488538693,-426.0,0.00054794,60]
[358856771,1745488538706,-426.0,0.00054794,60]
[358856772,1745488538719,-426.0,0.00054794,60]
[358856773,1745488538732,-426.0,0.00054794,60]
[358856774,1745488538746,-426.0,0.00054794,60]
[358856775,1745488538759,-426.0,0.00054794,60]
[358856776,1745488538772,-426.0,0.00054794,60]
[358856777,1745488538786,-426.0,0.00054794,60]
[358856778,1745488538800,-426.0,0.00054794,60]
[358856779,1745488538815,-426.0,0.00054794,60]
[358856780,1745488538829,-426.0,0.00054794,60]
[358856781,1745488538844,-426.0,0.00054794,60]
[358856782,1745488538860,-426.0,0.00054794,60]
[358856783,1745488538873,-426.0,0.00054794,60]
[358856784,1745488538888,-426.0,0.00054794,60]
[358856785,1745488538902,-426.0,0.00054794,60]
[358856786,1745488538915,-426.0,0.00054794,60]
[358856787,1745488538928,-430.29919569,0.00054794,60]
[358856788,1745488538941,-152.5973865,0.00054794,60]
[358856789,1745488538954,-500.0,0.00054794,60]
[358856790,1745488538966,-500.0,0.00054794,60]
[358856791,1745488538980,-500.0,0.00054794,60]
[358856792,1745488538992,-500.0,0.00054794,60]
[358856793,1745488539005,-500.0,0.00054794,60]
[358856794,1745488539019,-227.27421446,0.00054794,60]
[358856795,1745488539033,-150.0,0.00054794,60]
[358856796,1745488539046,-150.0,0.00054794,60]
[358856797,1745488539060,-1037.25,0.00054794,120]
[358856798,1745488539073,-150.0,0.00054794,60]
[358856799,1745488539086,-1037.25,0.00054794,120]
[358856800,1745488539099,-150.0,0.00054794,60]
[358856801,1745488539113,-244.33088533,0.00054794,60]
[358856802,1745488539126,-1037.25,0.00054794,120]
[358856803,1745488539140,-1037.25,0.00054794,120]
[358856804,1745488539155,-1037.25,0.00054794,120]
[358856805,1745488539168,-1037.25,0.00054794,120]
[358856806,1745488539182,-1037.25,0.00054794,120]
[358856807,1745488539195,-500.0,0.00054794,60]
[358856808,1745488539208,-1037.25,0.00054794,120]
[358856809,1745488539219,-1037.25,0.00054794,120]
[358856810,1745488539233,-500.0,0.00054794,60]
[358856811,1745488539244,-500.0,0.00054794,60]
[358856812,1745488539256,-500.0,0.00054794,60]
[358856813,1745488539269,-1037.25,0.00054794,120]
[358856814,1745488539281,-1037.25,0.00054794,120]
[358856815,1745488539294,-500.0,0.00054794,60]
[358856816,1745488539307,-500.0,0.00054794,60]
[358856817,1745488539319,-1037.25,0.00054794,120]
[358856818,1745488539330,-500.0,0.00054794,60]
[358856819,1745488539343,-1037.25,0.00054794,120]
[358856820,1745488539355,-500.0,0.00054794,60]
[358856821,1745488539368,-500.0,0.00054794,60]
[358856822,1745488539380,-1037.25,0.00054794,120]
[358856823,1745488539392,-1037.25,0.00054794,120]
[358856824,1745488539405,-500.0,0.00054794,60]
[358856825,1745488539421,-1037.25,0.00054794,120]
[358856826,1745488539435,-500.0,0.00054794,60]
[358856827,1745488539449,-1037.25,0.00054794,120]
[358856828,1745488539463,-500.0,0.00054794,60]
[358856829,1745488539476,-1037.25,0.00054794,120]
[358856830,1745488539490,-506.72862729,0.00054794,60]
[358856831,1745488539505,-1037.25,0.00054794,120]
[358856832,1745488539517,-1037.25,0.00054794,120]
[358856833,1745488539531,-1037.25,0.00054794,120]
[358856834,1745488539544,-1037.25,0.00054794,120]
[358856835,1745488539557,-1037.25,0.00054794,120]
[358856836,1745488539570,-153.11859306,0.00054794,60]
[358856837,1745488539585,-1037.43800966,0.00054794,120]
[358856838,1745488539597,-500.0,0.00054794,60]
[358856839,1745488539610,-500.0,0.00054794,60]
[358856840,1745488539623,-500.0,0.00054794,60]
[358856841,1745488539635,-500.0,0.00054794,60]
[358856842,1745488539649,-500.0,0.00054794,60]
[358856843,1745488539662,-500.0,0.00054794,60]
[358856844,1745488539675,-359.38659874,0.00054794,60]
[358856845,1745488539687,-500.0,0.00054794,60]
[358856846,1745488539700,-500.0,0.00054794,60]
[358856847,1745488539713,-500.0,0.00054794,60]
[358856848,1745488539726,-500.0,0.00054794,60]
[358856849,1745488539740,-254.56803189,0.00054794,60]
[358856850,1745488539753,-500.0,0.00054794,60]
[358856851,1745488539768,-500.0,0.00054794,60]
[358856852,1745488539782,-500.0,0.00054794,60]
[358856853,1745488539795,-500.0,0.00054794,60]
[358856854,1745488539809,-500.0,0.00054794,60]
[358856855,1745488539822,-500.0,0.00054794,60]
[358856856,1745488539835,-500.0,0.00054794,60]
[358856857,1745488539849,-519.50075251,0.00054794,60]
[358856858,1745488539863,-150.0,0.00054794,60]
[358856859,1745488539876,-253.30778659,0.00054794,60]
[358856860,1745488539888,-500.0,0.00054794,60]
[358856861,1745488539901,-500.0,0.00054794,60]
[358856862,1745488539913,-500.0,0.00054794,60]
[358856863,1745488539926,-500.0,0.00054794,60]
[358856864,1745488539939,-500.0,0.00054794,60]
[358856865,1745488539952,-500.0,0.00054794,60]
[358856866,1745488539965,-500.0,0.00054794,60]
[358856867,1745488539978,-500.0,0.00054794,60]
[358856868,1745488539991,-500.0,0.00054794,60]
[358856869,1745488540005,-500.0,0.00054794,60]
[358856870,1745488540018,-500.0,0.00054794,60]
[358856871,1745488540031,-500.0,0.00054794,60]
[358856872,1745488540044,-500.0,0.00054794,60]
[358856873,1745488540056,-500.0,0.00054794,60]
[358856874,1745488540070,-500.0,0.00054794,60]
[358856875,1745488540083,-243.26636695,0.00054794,60]
[358856876,1745488540097,-500.0,0.00054794,16]
[358856877,1745488540111,-500.0,0.00054794,16]
[358856878,1745488540125,-539.38058593,0.00054794,16]
[358856879,1745488540138,-500.0,0.00054794,60]
[358856880,1745488540151,-500.0,0.00054794,60]
[358856881,1745488540163,-500.0,0.00054794,60]
[358856882,1745488540177,-403.09140668,0.00054794,60]
[358856883,1745488540191,-200.74282385,0.00054794,60]
[358856884,1745488540204,-479.0,0.00054794,60]
[358856885,1745488540218,-479.0,0.00054794,60]
[358856886,1745488540232,-479.0,0.00054794,60]
[358856887,1745488540247,-479.0,0.00054794,60]
[358856888,1745488540260,-479.0,0.00054794,60]
[358856889,1745488540273,-479.0,0.00054794,60]
[358856890,1745488540286,-479.0,0.00054794,60]
[358856891,1745488540301,-479.0,0.00054794,60]
[358856892,1745488540315,-479.0,0.00054794,60]
[358856893,1745488540328,-479.0,0.00054794,60]
[358856894,1745488540342,-479.0,0.00054794,60]
[358856895,1745488540356,-479.0,0.00054794,60]
[358856896,1745488540369,-479.0,0.00054794,60]
[358856897,1745488540382,-479.0,0.00054794,60]
[358856898,1745488540398,-479.0,0.00054794,60]
[358856899,1745488540412,-479.0,0.00054794,60]
[358856900,1745488540435,-479.0,0.00054794,60]
[358856901,1745488540448,-479.0,0.00054794,60]
[358856902,1745488540462,-479.0,0.00054794,60]
[358856903,1745488540477,-479.0,0.00054794,60]
[358856904,1745488540493,-479.0,0.00054794,60]
[358856905,1745488540507,-479.0,0.00054794,60]
[358856906,1745488540521,-479.0,0.00054794,60]
[358856907,1745488540535,-479.81202636,0.00054794,60]
[358856908,1745488540549,-193.95062019,0.00054794,60]
[358856909,1745488540569,-150.0,0.00054794,60]
[358856910,1745488540582,-150.0,0.00054794,60]
[358856911,1745488540595,-150.0,0.00054794,60]
[358856912,1745488540609,-150.0,0.00054794,60]
[358856913,1745488540622,-150.0,0.00054794,60]
[358856914,1745488540635,-247.35644845,0.00054794,60]
[358856915,1745488540648,-1000.0,0.00054794,120]
[358856916,1745488540661,-1000.0,0.00054794,120]
[358856917,1745488540674,-1000.0,0.00054794,120]
[358856918,1745488540688,-1000.0,0.00054794,120]
[358856919,1745488540702,-1000.0,0.00054794,120]
[358856920,1745488540717,-1000.0,0.00054794,120]
[358856921,1745488540732,-1000.0,0.00054794,120]
[358856922,1745488540746,-1000.0,0.00054794,120]
[358856923,1745488540761,-1000.0,0.00054794,120]
[358856924,1745488540776,-736.44564973,0.00054794,120]
[358856925,1745488540790,-525.64369847,0.00054794,120]
[358856926,1745488540804,-1625.57781787,0.00054794,120]
[358856927,1745488540817,-243.15714181,0.00054795,14]
[358856928,1745488540831,-700.0,0.00054795,14]
[358856929,1745488540846,-2000.0,0.00054795,120]
[358856930,1745488540860,-354.83249448,0.00054795,120]
[358856931,1745488540873,-1071.0,0.00054795,120]
[358856932,1745488542313,-155.0,0.00054795,60]
[358856933,1745488542330,-200.0,0.00054795,60]
[358856934,1745488542340,-151.0,0.00054795,60]
[358856935,1745488542351,-150.0,0.00054795,60]
[358856936,1745488542361,-150.0,0.00054795,60]
[358856937,1745488542371,-249.67146225,0.00054795,60]
[358856938,1745488542380,-2110.0,0.00054795,30]
[358856939,1745488542390,-179.983406,0.00054795,60]
[358856940,1745488542400,-260.4922397,0.00054795,120]
[358856941,1745488542410,-2000.0,0.000548,2]
[358856942,1745488542422,-522.33160584,0.000548,120]
[358856943,1745488542432,-420.051,0.000548,2]
[358856944,1745488542442,-420.051,0.000548,2]
[358856945,1745488542452,-1689.0,0.00054819,30]
[358856946,1745488542462,-576.15178432,0.00054819,30]
[358856947,1745488542473,-1000.0,0.00054876,45]
[358856948,1745488542483,-3045.12820435,0.000549,30]
[358856949,1745488542492,-1192.39564106,0.0005498,120]
[358856950,1745488542502,-1000.0,0.00054999,120]
[358856951,1745488542512,-50000.0,0.00055,55]
[358856952,1745488542522,-83590.0,0.00055,15]
[358856953,1745488542532,-10180.66,0.00055,15]
[358856954,1745488542542,-200.0,0.00055,120]
[358856955,1745488542553,-1000000.0,0.00055,120]
[358856956,1745488542563,-142283.06030469,0.00055,5]
[358856957,1745488542572,-1002.0,0.00055,120]
[358856958,1745488542582,-1000.0,0.00055,5]
[358856959,1745488542591,-1000.0,0.00055,14]
[358856960,1745488542601,-150.0,0.00055,5]
[358856961,1745488542611,-212.57154751,0.00055,120]
[358856962,1745488542620,-1013.0,0.00055,120]
[358856963,1745488542630,-26533.10997869,0.00055,30]
[358856964,1745488542640,-208.02258919,0.00055,120]
[358856965,1745488542650,-1000.0,0.00055,120]
[358856966,1745488542660,-10000.0,0.00055,120]
[358856967,1745488542670,-900.0,0.00055,56]
[358856968,1745488542680,-9615.56563438,0.00055,120]
[358856969,1745488542689,-3360.73695075,0.00055,60]
[358856970,1745488542699,-2527.78229714,0.00055,60]
[358856971,1745488542708,-195.08687451,0.00055,120]
[358856972,1745488542718,-1200.0,0.00055,2]
[358856973,1745488542730,-8000.0,0.00055,30]
[358856974,1745488542742,-625.0,0.00055,120]
[358856975,1745488542751,-1076.79,0.00055,2]
[358856976,1745488542761,-150.0,0.00055,120]
[358856977,1745488542770,-375.92419434,0.00055,120]
[358856978,1745488542779,-799.5,0.00055068,120]
[358856979,1745488542788,-500.0,0.00055068,120]
[358856980,1745488542799,-500.0,0.00055068,36]
[358856981,1745488542808,-10000.0,0.00055068,120]
[358856982,1745488542819,-8000.37,0.00055068,120]
[358856983,1745488542828,-625.0,0.00055068,120]
[358856984,1745488542839,-151.0,0.00055123,120]
[358856985,1745488542848,-351.08,0.00055283,30]
[358856986,1745488542858,-2110.0,0.00055295,30]
[358856987,1745488542868,-799.5,0.00055342,120]
[358856988,1745488542877,-2000.0,0.00055342,120]
[358856989,1745488542887,-10000.0,0.00055342,120]
[358856990,1745488542897,-625.0,0.00055342,120]
[358856991,1745488542908,-342.0,0.00055348,120]
[358856992,1745488542917,-1689.0,0.00055367,30]
[358856993,1745488542927,-959.29977288,0.0005544,60]
[358856994,1745488542936,-1170.65,0.00055478,2]
[358856995,1745488542946,-200.0,0.000555,120]
[358856996,1745488542956,-15000.0,0.0005555,32]
[358856997,1745488542965,-799.5,0.00055616,120]
[358856998,1745488542975,-584.49428631,0.00055616,38]
[358856999,1745488542984,-10000.0,0.00055616,120]
[358857000,1745488542994,-625.0,0.00055616,120]
[358857001,1745488543003,-151.0,0.00055781,120]
[358857002,1745488543014,-201.0,0.00055855,60]
[358857003,1745488543023,-799.5,0.0005589,120]
[358857004,1745488543034,-2000.0,0.0005589,120]
[358857005,1745488543043,-500.0,0.0005589,120]
[358857006,1745488543053,-10000.0,0.0005589,120]
[358857007,1745488543063,-8000.37,0.0005589,120]
[358857008,1745488543072,-625.0,0.0005589,120]
[358857009,1745488543083,-1689.0,0.00055915,30]
[358857010,1745488543094,-150.0,0.00055937,120]
[358857011,1745488543103,-50000.0,0.00056,56]
[358857012,1745488543112,-250.086028,0.00056,14]
[358857013,1745488543122,-700.0,0.00056,120]
[358857014,1745488543132,-200.0,0.00056,120]
[358857015,1745488543142,-150.0,0.00056,5]
[358857016,1745488543151,-200.0,0.00056,120]
[358857017,1745488543161,-1000.0,0.00056,120]
[358857018,1745488543171,-26380.0,0.00056,120]
[358857019,1745488543180,-4317.0,0.00056,120]
[358857020,1745488543191,-1076.79,0.00056,2]
[358857021,1745488543201,-796.0,0.00056,2]
[358857022,1745488543211,-893.0,0.00056,120]
[358857023,1745488543220,-375.92419434,0.00056,120]
[358857024,1745488543230,-900.0,0.00056,57]
[358857025,1745488543239,-10000.0,0.00056,120]
[358857026,1745488543249,-15935.96304885,0.00056,120]
[358857027,1745488543259,-4211.4309777,0.00056,120]
[358857028,1745488543272,-40169.5313205,0.00056,120]
[358857029,1745488543282,-150.0,0.00056064,30]
[358857030,1745488543291,-351.2,0.00056064,30]
[358857031,1745488543301,-351.2,0.00056064,30]
[358857032,1745488543311,-1151.08,0.00056064,30]
[358857033,1745488543321,-1151.08,0.00056064,30]
[358857034,1745488543331,-753.74,0.00056064,30]
[358857035,1745488543340,-450.18,0.00056067,30]
[358857036,1745488543350,-1150.78,0.00056067,30]
[358857037,1745488543360,-1571.2,0.00056067,30]
[358857038,1745488543370,-150.0,0.00056067,30]
[358857039,1745488543379,-150.0,0.00056067,30]
[358857040,1745488543390,-161.75,0.00056067,30]
[358857041,1745488543399,-351.08,0.00056067,30]
[358857042,1745488543410,-351.2,0.00056067,30]
[358857043,1745488543423,-351.2,0.00056067,30]
[358857044,1745488543432,-351.2,0.00056067,30]
[358857045,1745488543442,-161.75,0.00056067,30]
[358857046,1745488543452,-351.2,0.00056067,30]
[358857047,1745488543463,-351.2,0.00056067,30]
[358857048,1745488543473,-150.0,0.00056067,30]
[358857049,1745488543483,-799.5,0.00056164,120]
[358857050,1745488543493,-10000.0,0.00056164,120]
[358857051,1745488543505,-500.0,0.00056164,30]
[358857052,1745488543516,-500.0,0.00056164,30]
[358857053,1745488543526,-500.0,0.00056164,30]
[358857054,1745488543536,-500.0,0.00056164,30]
[358857055,1745488543545,-500.0,0.00056164,30]
[358857056,1745488543556,-500.0,0.00056164,30]
[358857057,1745488543566,-500.0,0.00056164,30]
[358857058,1745488543576,-500.0,0.00056164,30]
[358857059,1745488543586,-500.0,0.00056164,30]
[358857060,1745488543596,-500.0,0.00056164,30]
[358857061,1745488543606,-500.0,0.00056164,30]
[358857062,1745488543616,-500.0,0.00056164,30]
[358857063,1745488543626,-611.89917346,0.00056164,30]
[358857064,1745488543636,-625.0,0.00056164,120]
[358857065,1745488543646,-204.81141,0.00056411,7]
[358857066,1745488543656,-260.4600003,0.00056411,15]
[358857067,1745488543666,-799.5,0.00056438,120]
[358857068,1745488543676,-2000.0,0.00056438,120]
[358857069,1745488543686,-10000.0,0.00056438,120]
[358857070,1745488543696,-1689.0,0.00056464,30]
[358857071,1745488543706,-200.0,0.000565,120]
[358857072,1745488543716,-9375.01668575,0.0005666,35]
[358857073,1745488543726,-799.5,0.00056712,120]
[358857074,1745488543738,-500.0,0.00056712,120]
[358857075,1745488543748,-7198.83096,0.00056712,120]
[358857076,1745488543758,-8000.37,0.00056712,120]
[358857077,1745488543769,-799.5,0.00056986,120]
[358857078,1745488543779,-2000.0,0.00056986,120]
[358857079,1745488543789,-857.22183863,0.00056986,30]
[358857080,1745488543800,-36027.74374217,0.00056998,120]
[358857081,1745488543810,-50000.0,0.00057,57]
[358857082,1745488543820,-250.0,0.00057,5]
[358857083,1745488543830,-200.0,0.00057,120]
[358857084,1745488543840,-2000.0,0.00057,120]
[358857085,1745488543850,-2019.82224175,0.00057,120]
[358857086,1745488543860,-2000.0,0.00057,120]
[358857087,1745488543870,-2000.0,0.00057,120]
[358857088,1745488543880,-2000.0,0.00057,120]
[358857089,1745488543890,-2000.0,0.00057,120]
[358857090,1745488543899,-2340.164,0.00057,120]
[358857091,1745488543909,-19965.85310369,0.00057,120]
[358857092,1745488543921,-900.0,0.00057,58]
[358857093,1745488543931,-688.5262,0.00057,120]
[358857094,1745488543941,-4000.01,0.00057,120]
[358857095,1745488543951,-1250.0,0.00057,2]
[358857096,1745488543961,-900000.0,0.00057,120]
[358857097,1745488543971,-11728.96,0.00057,60]
[358857098,1745488543982,-375.92419434,0.00057,120]
[358857099,1745488543993,-201.0,0.0005719,60]
[358857100,1745488544003,-799.5,0.0005726,120]
[358857101,1745488544013,-1000.0,0.0005726,120]
[358857102,1745488544023,-12188.8252502,0.0005744,32]
[358857103,1745488544033,-150.0,0.00057499,120]
[358857104,1745488544043,-200.0,0.000575,120]
[358857105,1745488544054,-2000.0,0.000575,90]
[358857106,1745488544064,-155.0,0.00057532,2]
[358857107,1745488544074,-799.5,0.00057534,120]
[358857108,1745488544084,-2000.0,0.00057534,120]
[358857109,1745488544094,-500.0,0.00057534,120]
[358857110,1745488544104,-8000.37,0.00057534,120]
[358857111,1745488544114,-625.0,0.00057534,120]
[358857112,1745488544123,-1171.23,0.00057534,120]
[358857113,1745488544133,-1071.0,0.00057535,120]
[358857114,1745488544143,-2048.02383929,0.000576,120]
[358857115,1745488544154,-151.0,0.00057671,120]
[358857116,1745488544164,-1170.65,0.00057742,2]
[358857117,1745488544174,-799.5,0.00057808,120]
[358857118,1745488544184,-7743.90869844,0.00057888,120]
[358857119,1745488544194,-1000.0,0.00057999,120]
[358857120,1745488544204,-50000.0,0.00058,58]
[358857121,1745488544214,-296.08,0.00058,5]
[358857122,1745488544224,-34048.81873899,0.00058,10]
[358857123,1745488544234,-600.0,0.00058,120]
[358857124,1745488544244,-225.0,0.00058,120]
[358857125,1745488544254,-200.0,0.00058,120]
[358857126,1745488544264,-106509.14949032,0.00058,30]
[358857127,1745488544274,-1000.0,0.00058,120]
[358857128,1745488544285,-564802.99920615,0.00058,30]
[358857129,1745488544294,-303.70180227,0.00058,120]
[358857130,1745488544304,-160.0,0.00058,120]
[358857131,1745488544314,-52110.44745628,0.00058,30]
[358857132,1745488544324,-336.55408797,0.00058,30]
[358857133,1745488544335,-1200.0,0.00058,120]
[358857134,1745488544345,-900.0,0.00058,59]
[358857135,1745488544355,-2000.0,0.00058,120]
[358857136,1745488544365,-26380.0,0.00058,120]
[358857137,1745488544375,-1864.04109967,0.00058,120]
[358857138,1745488544385,-10000.0,0.00058,120]
[358857139,1745488544395,-4317.0,0.00058,120]
[358857140,1745488544406,-1076.79,0.00058,2]
[358857141,1745488544416,-893.0,0.00058,120]
[358857142,1745488544431,-375.92419434,0.00058,120]
[358857143,1745488544442,-799.5,0.00058082,120]
[358857144,1745488544452,-2000.0,0.00058082,120]
[358857145,1745488544462,-799.53265563,0.00058356,120]
[358857146,1745488544473,-500.0,0.00058356,120]
[358857147,1745488544483,-8000.37,0.00058356,120]
[358857148,1745488544493,-200.0,0.000585,120]
[358857149,1745488544504,-201.0,0.00058524,60]
[358857150,1745488544514,-2000.0,0.0005863,120]
[358857151,1745488544524,-401.28945036,0.000587,120]
[358857152,1745488544534,-342.0,0.00058807,120]
[358857153,1745488544544,-6000.0,0.0005885,60]
[358857154,1745488544554,-3000.0,0.000589,120]
[358857155,1745488544564,-3000.0,0.0005898,40]
[358857156,1745488544574,-50000.0,0.00059,59]
[358857157,1745488544584,-908.0,0.00059,60]
[358857158,1745488544594,-1000.0,0.00059,120]
[358857159,1745488544604,-501.52,0.00059,5]
[358857160,1745488544613,-200.0,0.00059,120]
[358857161,1745488544624,-25000.0,0.00059,120]
[358857162,1745488544634,-1300.0,0.00059,2]
[358857163,1745488544808,-1076.79405514,0.00059,2]
[358857164,1745488544818,-796.0,0.00059,2]
[358857165,1745488544828,-375.92419434,0.00059,120]
[358857166,1745488544838,-150.0,0.00059062,120]
[358857167,1745488544847,-573.2546896,0.0005909,2]
[358857168,1745488544856,-101235.0,0.0005911,120]
[358857169,1745488544866,-101235.0,0.0005911,120]
[358857170,1745488544875,-2000.0,0.00059178,120]
[358857171,1745488544884,-500.0,0.00059178,120]
[358857172,1745488544894,-8000.37,0.00059178,120]
[358857173,1745488544903,-342.0,0.00059301,120]
[358857174,1745488544912,-200.0,0.000595,120]
[358857175,1745488544922,-3955.70647359,0.000595,120]
[358857176,1745488544931,-3000.0,0.0005955,40]
[358857177,1745488544940,-151.0,0.00059562,120]
[358857178,1745488544950,-303655.8605009,0.000596,120]
[358857179,1745488544959,-173.04623,0.000596,120]
[358857180,1745488544968,-159.41808,0.000596,120]
[358857181,1745488544977,-170.06148,0.000596,120]
[358857182,1745488544987,-349.30193587,0.00059616,14]
[358857183,1745488544996,-2000.0,0.00059726,120]
[358857184,1745488545005,-3000.0,0.0005979,40]
[358857185,1745488545014,-625.0,0.00059836,120]
[358857186,1745488545023,-201.0,0.00059858,60]
[358857187,1745488545032,-1000.0,0.00059876,60]
[358857188,1745488545042,-2094.82611292,0.00059893,120]
[358857189,1745488545051,-5701.72426689,0.000599,120]
[358857190,1745488545060,-2000.0,0.000599,120]
[358857191,1745488545069,-392271.26218707,0.000599,120]
[358857192,1745488545078,-300000.0,0.000599,7]
[358857193,1745488545087,-3000.0,0.0005993,40]
[358857194,1745488545096,-3500.00029167,0.0005995,40]
[358857195,1745488545105,-1192.39564106,0.0005998,120]
[358857196,1745488545115,-12634.81551783,0.0005998,30]
[358857197,1745488545124,-1000.0,0.00059999,120]
[358857198,1745488545133,-500.0,0.00059999,120]
[358857199,1745488545144,-8000.37,0.00059999,120]
[358857200,1745488545153,-659.20217582,0.00059999,120]
[358857201,1745488545163,-50000.0,0.0006,60]
[358857202,1745488545172,-1000.0,0.0006,2]
[358857203,1745488545182,-6074.98239892,0.0006,2]
[358857204,1745488545192,-133360.2360442,0.0006,50]
[358857205,1745488545202,-1000000.0,0.0006,120]
[358857206,1745488545211,-1000000.0,0.0006,120]